[Event "*** Titled Tuesday Blitz"]
[Site "Chess.com"]
[Date "2020.10.27"]
[Round "10"]
[White "xberli"]
[Black "TokChess"]
[Result "0-1"]
[WhiteElo "2527"]
[BlackElo "2456"]
[TimeControl "180+1"]
[EndTime "11:56:42 PDT"]
[Termination "TokChess won by resignation"]

1. e4 {[%clk 0:02:27.1]} 1... c5 {[%clk 0:02:58.9]} 2. Nf3 {[%clk 0:02:23.1]}
2... e6 {[%clk 0:02:58.8]} 3. d4 {[%clk 0:02:22.8]} 3... cxd4 {[%clk 0:02:59]}
4. Nxd4 {[%clk 0:02:23.7]} 4... a6 {[%clk 0:02:59.4]} 5. c4 {[%clk 0:02:23.6]}
5... Nf6 {[%clk 0:02:58.2]} 6. Nc3 {[%clk 0:02:22.9]} 6... Qc7 {[%clk
0:02:57.5]} 7. Be2 {[%clk 0:02:22.8]} 7... d6 {[%clk 0:02:56.8]} 8. O-O {[%clk
0:02:22.2]} 8... b6 {[%clk 0:02:57.2]} 9. a3 {[%clk 0:02:19.5]} 9... Bb7 {[%clk
0:02:57.3]} 10. Qc2 {[%clk 0:02:08.7]} 10... Nbd7 {[%clk 0:02:56.4]} 11. f4
{[%clk 0:02:02.9]} 11... Be7 {[%clk 0:02:56]} 12. b4 {[%clk 0:02:01.7]} 12...
Rc8 {[%clk 0:02:56]} 13. Bb2 {[%clk 0:01:59.4]} 13... O-O {[%clk 0:02:53.6]} 14.
Rac1 {[%clk 0:01:57.1]} 14... Qb8 {[%clk 0:02:52]} 15. Qd3 {[%clk 0:01:43.9]}
15... Rfd8 {[%clk 0:02:50.8]} 16. g4 {[%clk 0:01:42.2]} 16... Qa8 {[%clk
0:02:50.2]} 17. Bf3 {[%clk 0:01:29.3]} 17... g5 {[%clk 0:02:34.3]} 18. fxg5
{[%clk 0:01:14.3]} 18... Ne5 {[%clk 0:02:33.1]} 19. Qe2 {[%clk 0:01:10.8]} 19...
Nfd7 {[%clk 0:02:29.3]} 20. h4 {[%clk 0:01:09.8]} 20... Rxc4 {[%clk 0:02:26.6]}
21. Na2 {[%clk 0:00:22.6]} 21... Rxc1 {[%clk 0:02:19.6]} 22. Rxc1 {[%clk
0:00:21.9]} 22... Nxf3+ {[%clk 0:02:18.9]} 23. Nxf3 {[%clk 0:00:21.1]} 23...
Bxe4 {[%clk 0:02:16.1]} 24. Nd2 {[%clk 0:00:20.4]} 24... Bg6 {[%clk 0:02:00]}
25. Nc3 {[%clk 0:00:19.8]} 25... Ne5 {[%clk 0:01:58.2]} 26. Nce4 {[%clk
0:00:17.5]} 26... Qd5 {[%clk 0:01:43.9]} 27. h5 {[%clk 0:00:16.9]} 27... Bxe4
{[%clk 0:01:39.3]} 28. Nxe4 {[%clk 0:00:17.8]} 28... Qd3 {[%clk 0:01:25.2]} 29.
Qxd3 {[%clk 0:00:16.1]} 29... Nxd3 {[%clk 0:01:25.4]} 30. Rc7 {[%clk 0:00:16.6]}
30... Bxg5 {[%clk 0:01:13.8]} 31. Bf6 {[%clk 0:00:15.2]} 31... Bxf6 {[%clk
0:01:10.8]} 32. Nxf6+ {[%clk 0:00:16.1]} 32... Kg7 {[%clk 0:01:11.2]} 33. g5
{[%clk 0:00:16.4]} 33... Ne5 {[%clk 0:01:05.7]} 34. Rb7 {[%clk 0:00:15.1]} 34...
h6 {[%clk 0:01:04.2]} 35. Ne4 {[%clk 0:00:13.7]} 35... hxg5 {[%clk 0:01:03.7]}
36. Nxg5 {[%clk 0:00:14.2]} 36... Kf6 {[%clk 0:01:00.6]} 37. Ne4+ {[%clk
0:00:14.3]} 37... Kf5 {[%clk 0:00:59.6]} 38. Ng3+ {[%clk 0:00:14.5]} 38... Kf4
{[%clk 0:00:55.8]} 39. Kh2 {[%clk 0:00:14.6]} 39... Rc8 {[%clk 0:00:51.4]} 40.
Rxb6 {[%clk 0:00:14]} 40... Nf3+ {[%clk 0:00:46.8]} 41. Kh3 {[%clk 0:00:13.4]}
41... Rc2 {[%clk 0:00:40.8]} 42. Nf1 {[%clk 0:00:13.6]} 42... Rf2 {[%clk
0:00:34.8]} 43. h6 {[%clk 0:00:13.7]} 43... Rxf1 {[%clk 0:00:34.3]} 44. Kg2
{[%clk 0:00:11.7]} 44... Rg1+ {[%clk 0:00:32.7]} 45. Kf2 {[%clk 0:00:11.9]}
45... Rh1 {[%clk 0:00:32.8]} 46. Rc6 {[%clk 0:00:12]} 46... Rh2+ {[%clk
0:00:32.9]} 47. Kf1 {[%clk 0:00:11.1]} 47... Rxh6 {[%clk 0:00:30.2]} 48. Rxa6
{[%clk 0:00:11.6]} 48... Rh1+ {[%clk 0:00:29.8]} 49. Kg2 {[%clk 0:00:10.8]}
49... Rh2+ {[%clk 0:00:30.2]} 50. Kf1 {[%clk 0:00:10.3]} 50... d5 {[%clk
0:00:30.7]} 51. Ra7 {[%clk 0:00:09.9]} 51... f5 {[%clk 0:00:30.5]} 52. b5 {[%clk
0:00:10.3]} 52... Ke3 {[%clk 0:00:29]} 0-1

[Event "*** Titled Tuesday Blitz"]
[Site "Chess.com"]
[Date "2020.10.27"]
[Round "10"]
[White "nrvisakh"]
[Black "kuli4ik"]
[Result "1-0"]
[WhiteElo "2706"]
[BlackElo "2867"]
[TimeControl "180+1"]
[EndTime "11:56:49 PDT"]
[Termination "nrvisakh won by resignation"]

1. e4 {[%clk 0:03:00.9]} 1... e6 {[%clk 0:03:00.4]} 2. d4 {[%clk 0:02:57.3]}
2... d5 {[%clk 0:03:01.3]} 3. Nd2 {[%clk 0:02:57.2]} 3... a6 {[%clk 0:03:01.1]}
4. Ngf3 {[%clk 0:02:56.6]} 4... c5 {[%clk 0:03:01.2]} 5. exd5 {[%clk 0:02:55.4]}
5... exd5 {[%clk 0:03:00.9]} 6. dxc5 {[%clk 0:02:53.8]} 6... Bxc5 {[%clk
0:03:00.2]} 7. Bd3 {[%clk 0:02:52.1]} 7... Nf6 {[%clk 0:03:00]} 8. O-O {[%clk
0:02:51.2]} 8... O-O {[%clk 0:03:00.1]} 9. Nb3 {[%clk 0:02:51.1]} 9... Bb6
{[%clk 0:03:00.3]} 10. h3 {[%clk 0:02:49.3]} 10... Nc6 {[%clk 0:02:59.1]} 11.
Re1 {[%clk 0:02:49.4]} 11... h6 {[%clk 0:02:59]} 12. Be3 {[%clk 0:02:48.8]}
12... Bc7 {[%clk 0:02:58.6]} 13. Qc1 {[%clk 0:02:39.7]} 13... Ne4 {[%clk
0:02:55.6]} 14. Bf4 {[%clk 0:02:36.6]} 14... Re8 {[%clk 0:02:52.8]} 15. Bxc7
{[%clk 0:02:19]} 15... Qxc7 {[%clk 0:02:53.7]} 16. c3 {[%clk 0:02:15.3]} 16...
Bf5 {[%clk 0:02:51.1]} 17. Nbd4 {[%clk 0:02:13.4]} 17... Bg6 {[%clk 0:02:50.5]}
18. Re3 {[%clk 0:02:03.2]} 18... Re7 {[%clk 0:02:47.9]} 19. Nh4 {[%clk 0:01:51]}
19... Bh7 {[%clk 0:02:44.2]} 20. Nhf5 {[%clk 0:01:45.1]} 20... Bxf5 {[%clk
0:02:31.9]} 21. Nxf5 {[%clk 0:01:44.9]} 21... Re5 {[%clk 0:02:32.4]} 22. Rf3
{[%clk 0:01:13.1]} 22... Rae8 {[%clk 0:02:22.6]} 23. Qf4 {[%clk 0:01:05.1]}
23... Qd7 {[%clk 0:01:58.3]} 24. Re1 {[%clk 0:00:57.5]} 24... Ng5 {[%clk
0:01:51.5]} 25. Rfe3 {[%clk 0:00:51.9]} 25... Rxe3 {[%clk 0:01:42.7]} 26. Rxe3
{[%clk 0:00:52.8]} 26... Rxe3 {[%clk 0:01:41.5]} 27. Qxe3 {[%clk 0:00:51.7]}
27... Qe6 {[%clk 0:01:37.2]} 28. Qg3 {[%clk 0:00:48.7]} 28... Qf6 {[%clk
0:01:13.9]} 29. Qc7 {[%clk 0:00:41.8]} 29... Ne4 {[%clk 0:01:08.7]} 30. Bxe4
{[%clk 0:00:17.9]} 30... dxe4 {[%clk 0:01:07.7]} 31. Ng3 {[%clk 0:00:15.8]}
31... Qe6 {[%clk 0:00:57.2]} 32. Qxb7 {[%clk 0:00:15.8]} 32... e3 {[%clk
0:00:46.3]} 33. fxe3 {[%clk 0:00:15.7]} 33... Qxe3+ {[%clk 0:00:46]} 34. Kh2
{[%clk 0:00:16.1]} 34... Ne5 {[%clk 0:00:42.7]} 35. Qa8+ {[%clk 0:00:11.6]}
35... Kh7 {[%clk 0:00:42]} 36. Qe4+ {[%clk 0:00:12.5]} 36... Qxe4 {[%clk
0:00:40.7]} 37. Nxe4 {[%clk 0:00:13.4]} 37... Nd3 {[%clk 0:00:38.6]} 38. b4
{[%clk 0:00:13.5]} 38... f5 {[%clk 0:00:38.7]} 39. Nc5 {[%clk 0:00:12.8]} 39...
Ne5 {[%clk 0:00:32.6]} 40. Nxa6 {[%clk 0:00:10.6]} 40... Kg6 {[%clk 0:00:33.2]}
41. b5 {[%clk 0:00:10.8]} 41... Nc4 {[%clk 0:00:33]} 42. Nb4 {[%clk 0:00:08.8]}
42... Kf6 {[%clk 0:00:32.6]} 43. Kg3 {[%clk 0:00:08.3]} 43... Ke5 {[%clk
0:00:31.8]} 44. a4 {[%clk 0:00:08.4]} 44... g5 {[%clk 0:00:27.3]} 45. Nc6+
{[%clk 0:00:07.9]} 45... Kd6 {[%clk 0:00:27.5]} 46. a5 {[%clk 0:00:08.2]} 46...
Kc5 {[%clk 0:00:27.6]} 47. a6 {[%clk 0:00:08.4]} 47... Kxb5 {[%clk 0:00:27.1]}
48. a7 {[%clk 0:00:08.7]} 48... Nb6 {[%clk 0:00:27.3]} 49. Nd4+ {[%clk
0:00:08.9]} 49... Kc4 {[%clk 0:00:27.6]} 50. Nxf5 {[%clk 0:00:09.8]} 50... Kxc3
{[%clk 0:00:28.5]} 51. Nxh6 {[%clk 0:00:09.9]} 51... Kd4 {[%clk 0:00:29.4]} 52.
Kg4 {[%clk 0:00:10]} 1-0

[Event "*** Titled Tuesday Blitz"]
[Site "Chess.com"]
[Date "2020.10.27"]
[Round "10"]
[White "gui_borba"]
[Black "AndreyNeves"]
[Result "1-0"]
[WhiteElo "2435"]
[BlackElo "2254"]
[TimeControl "180+1"]
[EndTime "11:56:49 PDT"]
[Termination "gui_borba won by checkmate"]

1. d4 {[%clk 0:03:00.9]} 1... d5 {[%clk 0:01:50.5]} 2. Bf4 {[%clk 0:02:56.2]}
2... Nf6 {[%clk 0:01:49.3]} 3. e3 {[%clk 0:02:56.4]} 3... c5 {[%clk 0:01:48.9]}
4. c3 {[%clk 0:02:55.7]} 4... Nc6 {[%clk 0:01:42.4]} 5. Nd2 {[%clk 0:01:42.7]}
5... Bf5 {[%clk 0:01:38]} 6. Qb3 {[%clk 0:01:41.6]} 6... Qb6 {[%clk 0:01:37.6]}
7. Qxb6 {[%clk 0:01:36.6]} 7... axb6 {[%clk 0:01:36.4]} 8. Bb5 {[%clk
0:01:37.5]} 8... e6 {[%clk 0:01:24.1]} 9. Ngf3 {[%clk 0:01:37.6]} 9... Nd7
{[%clk 0:01:13.6]} 10. a4 {[%clk 0:01:33.9]} 10... Be7 {[%clk 0:01:11.3]} 11. h3
{[%clk 0:01:32.4]} 11... O-O {[%clk 0:01:10.6]} 12. g4 {[%clk 0:01:32.3]} 12...
Bg6 {[%clk 0:01:08.4]} 13. h4 {[%clk 0:01:32.8]} 13... h6 {[%clk 0:01:06.8]} 14.
h5 {[%clk 0:01:29.2]} 14... Bh7 {[%clk 0:01:05.7]} 15. g5 {[%clk 0:01:28.3]}
15... hxg5 {[%clk 0:01:04.6]} 16. Nxg5 {[%clk 0:01:23]} 16... Bxg5 {[%clk
0:00:57.7]} 17. Bxg5 {[%clk 0:01:23.9]} 17... f6 {[%clk 0:00:57.8]} 18. Bh4
{[%clk 0:01:21.2]} 18... e5 {[%clk 0:00:52.9]} 19. Bxc6 {[%clk 0:00:43.5]} 19...
bxc6 {[%clk 0:00:51.9]} 20. Rg1 {[%clk 0:00:40.2]} 20... Kf7 {[%clk 0:00:49.1]}
21. Nf3 {[%clk 0:00:37.5]} 21... cxd4 {[%clk 0:00:43]} 22. exd4 {[%clk
0:00:38.4]} 22... e4 {[%clk 0:00:37.8]} 23. Nh2 {[%clk 0:00:36.3]} 23... c5
{[%clk 0:00:35.1]} 24. Kd2 {[%clk 0:00:35.7]} 24... Rfc8 {[%clk 0:00:30.6]} 25.
Rgc1 {[%clk 0:00:33.3]} 25... Ra5 {[%clk 0:00:20.6]} 26. Nf1 {[%clk 0:00:30]}
26... c4 {[%clk 0:00:18]} 27. Ne3 {[%clk 0:00:28.5]} 27... f5 {[%clk 0:00:18.3]}
28. Bg3 {[%clk 0:00:24.6]} 28... Ke6 {[%clk 0:00:17.4]} 29. Rg1 {[%clk
0:00:22.1]} 29... Rca8 {[%clk 0:00:16.8]} 30. Bf4 {[%clk 0:00:20.3]} 30... Rxa4
{[%clk 0:00:12.8]} 31. Rxa4 {[%clk 0:00:21.2]} 31... Rxa4 {[%clk 0:00:12.8]} 32.
Rxg7 {[%clk 0:00:21.7]} 32... Nf6 {[%clk 0:00:11.7]} 33. Be5 {[%clk 0:00:14.6]}
33... b5 {[%clk 0:00:09.3]} 34. Bxf6 {[%clk 0:00:14.1]} 34... Kxf6 {[%clk
0:00:09.9]} 35. Rxh7 {[%clk 0:00:14.6]} 35... b4 {[%clk 0:00:09.9]} 36. Nxd5+
{[%clk 0:00:14.3]} 36... Kg5 {[%clk 0:00:10]} 37. Nxb4 {[%clk 0:00:13.7]} 37...
f4 {[%clk 0:00:09.4]} 38. h6 {[%clk 0:00:11.1]} 38... Ra1 {[%clk 0:00:09.1]} 39.
Rh8 {[%clk 0:00:10.8]} 39... Rh1 {[%clk 0:00:08.8]} 40. h7 {[%clk 0:00:11.2]}
40... Kg4 {[%clk 0:00:04.8]} 41. Rg8+ {[%clk 0:00:10.6]} 41... Kf3 {[%clk
0:00:05.7]} 42. h8=Q {[%clk 0:00:11.2]} 42... Rf1 {[%clk 0:00:05.6]} 43. Qh3+
{[%clk 0:00:10.3]} 43... Kxf2 {[%clk 0:00:05.3]} 44. Rg2# {[%clk 0:00:11.2]} 1-0

[Event "*** Titled Tuesday Blitz"]
[Site "Chess.com"]
[Date "2020.10.27"]
[Round "10"]
[White "TheSodabread"]
[Black "Chamal_Gedgafov"]
[Result "1-0"]
[WhiteElo "1928"]
[BlackElo "2129"]
[TimeControl "180+1"]
[EndTime "11:56:49 PDT"]
[Termination "TheSodabread won on time"]

1. d4 {[%clk 0:03:00.9]} 1... e6 {[%clk 0:02:58.6]} 2. Nc3 {[%clk 0:02:07]} 2...
d5 {[%clk 0:02:21.8]} 3. e4 {[%clk 0:01:43.3]} 3... Bb4 {[%clk 0:02:20.7]} 4. e5
{[%clk 0:01:06.2]} 4... c5 {[%clk 0:02:19.7]} 5. a3 {[%clk 0:01:05.9]} 5...
Bxc3+ {[%clk 0:02:19]} 6. bxc3 {[%clk 0:01:06.8]} 6... Ne7 {[%clk 0:02:19]} 7.
Qg4 {[%clk 0:01:06.9]} 7... Qc7 {[%clk 0:02:17.7]} 8. Qxg7 {[%clk 0:01:06.1]}
8... Rg8 {[%clk 0:02:17.3]} 9. Qxh7 {[%clk 0:01:06.9]} 9... cxd4 {[%clk
0:02:17.4]} 10. Ne2 {[%clk 0:01:07.5]} 10... Nbc6 {[%clk 0:02:16.3]} 11. f4
{[%clk 0:01:07.5]} 11... dxc3 {[%clk 0:02:15.5]} 12. Qd3 {[%clk 0:01:04.1]}
12... d4 {[%clk 0:02:13.8]} 13. Nxd4 {[%clk 0:01:04]} 13... Nxd4 {[%clk
0:02:12.2]} 14. Qxd4 {[%clk 0:01:04.9]} 14... Bd7 {[%clk 0:02:12.5]} 15. Rg1
{[%clk 0:00:56.8]} 15... Nf5 {[%clk 0:02:03.5]} 16. Qf2 {[%clk 0:00:56.6]} 16...
Qc6 {[%clk 0:01:58.9]} 17. Rb1 {[%clk 0:00:54.7]} 17... Qe4+ {[%clk 0:01:54.8]}
18. Qe2 {[%clk 0:00:51.5]} 18... Qd4 {[%clk 0:01:48.7]} 19. Qf2 {[%clk
0:00:49.2]} 19... O-O-O {[%clk 0:01:28.6]} 20. Bd3 {[%clk 0:00:33.9]} 20... Ba4
{[%clk 0:01:18.6]} 21. Rb4 {[%clk 0:00:25.3]} 21... Qd7 {[%clk 0:01:06.4]} 22.
Qxa7 {[%clk 0:00:16.7]} 22... Bc6 {[%clk 0:00:58.6]} 23. Ba6 {[%clk 0:00:07.9]}
23... Qd1+ {[%clk 0:00:42.4]} 24. Kf2 {[%clk 0:00:08.2]} 24... Qxc2+ {[%clk
0:00:39.5]} 25. Be2 {[%clk 0:00:06.9]} 25... Nd4 {[%clk 0:00:18.2]} 26. Rxd4
{[%clk 0:00:03]} 26... Rxd4 {[%clk 0:00:13.2]} 27. Qxd4 {[%clk 0:00:03.8]} 27...
Rd8 {[%clk 0:00:12]} 28. Qa7 {[%clk 0:00:02.5]} 28... Kc7 {[%clk 0:00:10.3]} 29.
Qa5+ {[%clk 0:00:02.5]} 29... Kc8 {[%clk 0:00:10.4]} 30. Be3 {[%clk 0:00:02.5]}
30... Rd2 {[%clk 0:00:08.2]} 31. Bxd2 {[%clk 0:00:02.1]} 31... cxd2 {[%clk
0:00:07.8]} 32. Rd1 {[%clk 0:00:02.5]} 32... Qe4 {[%clk 0:00:07.1]} 33. Qxd2
{[%clk 0:00:02.4]} 33... Qxg2+ {[%clk 0:00:06.8]} 34. Ke1 {[%clk 0:00:02.9]}
34... Qh1+ {[%clk 0:00:04.5]} 35. Bf1 {[%clk 0:00:03.5]} 35... Qe4+ {[%clk
0:00:04.1]} 36. Kf2 {[%clk 0:00:02.3]} 36... Qf3+ {[%clk 0:00:03.2]} 37. Ke1
{[%clk 0:00:02.3]} 37... Qe4+ {[%clk 0:00:02.7]} 38. Qe2 {[%clk 0:00:01.8]}
38... Qxf4 {[%clk 0:00:01.9]} 39. Rd3 {[%clk 0:00:01.8]} 1-0

[Event "*** Titled Tuesday Blitz"]
[Site "Chess.com"]
[Date "2020.10.27"]
[Round "10"]
[White "Anton_Demchenko"]
[Black "Msb2"]
[Result "1/2-1/2"]
[WhiteElo "2864"]
[BlackElo "2918"]
[TimeControl "180+1"]
[EndTime "11:56:55 PDT"]
[Termination "Game drawn by repetition"]

1. d4 {[%clk 0:03:00.9]} 1... Nf6 {[%clk 0:02:57.9]} 2. Nf3 {[%clk 0:03:01.2]}
2... d5 {[%clk 0:02:58.2]} 3. Bf4 {[%clk 0:03:00.8]} 3... c5 {[%clk 0:02:58.9]}
4. e3 {[%clk 0:03:00.9]} 4... Nc6 {[%clk 0:02:59.8]} 5. Nbd2 {[%clk 0:03:00.8]}
5... cxd4 {[%clk 0:03:00.4]} 6. exd4 {[%clk 0:03:01.7]} 6... Qb6 {[%clk
0:03:00.9]} 7. Nb3 {[%clk 0:03:02]} 7... Bf5 {[%clk 0:03:01.6]} 8. a4 {[%clk
0:02:59.9]} 8... a6 {[%clk 0:03:01.6]} 9. a5 {[%clk 0:02:58.6]} 9... Qd8 {[%clk
0:03:01.8]} 10. Bd3 {[%clk 0:02:49.8]} 10... Bxd3 {[%clk 0:03:01.1]} 11. Qxd3
{[%clk 0:02:50.7]} 11... e6 {[%clk 0:03:02]} 12. c3 {[%clk 0:02:49.4]} 12... Bd6
{[%clk 0:03:02.5]} 13. Bxd6 {[%clk 0:02:48.2]} 13... Qxd6 {[%clk 0:03:03.4]} 14.
O-O {[%clk 0:02:48.7]} 14... O-O {[%clk 0:03:01.5]} 15. Rfe1 {[%clk 0:02:48.4]}
15... Qc7 {[%clk 0:03:01.2]} 16. Ra4 {[%clk 0:02:36.4]} 16... b5 {[%clk
0:02:52]} 17. axb6 {[%clk 0:02:34.5]} 17... Qxb6 {[%clk 0:02:51.8]} 18. Nfd2
{[%clk 0:02:27.8]} 18... Qb5 {[%clk 0:02:43.5]} 19. Qxb5 {[%clk 0:02:22.7]}
19... axb5 {[%clk 0:02:44.4]} 20. Rxa8 {[%clk 0:02:11.6]} 20... Rxa8 {[%clk
0:02:45.3]} 21. Ra1 {[%clk 0:02:12.1]} 21... Rxa1+ {[%clk 0:02:45]} 22. Nxa1
{[%clk 0:02:13]} 22... b4 {[%clk 0:02:45.9]} 23. Kf1 {[%clk 0:02:03.9]} 23...
bxc3 {[%clk 0:02:45.8]} 24. bxc3 {[%clk 0:02:04.8]} 24... g5 {[%clk 0:02:46.1]}
25. Nc2 {[%clk 0:01:59.6]} 25... Nd7 {[%clk 0:02:44.7]} 26. Ke2 {[%clk
0:01:58.8]} 26... Kg7 {[%clk 0:02:44.4]} 27. c4 {[%clk 0:01:51.8]} 27... dxc4
{[%clk 0:02:42.7]} 28. Nxc4 {[%clk 0:01:52.7]} 28... f5 {[%clk 0:02:35.4]} 29.
N4e3 {[%clk 0:01:44.9]} 29... Nb6 {[%clk 0:02:32.3]} 30. f3 {[%clk 0:01:38.7]}
30... h5 {[%clk 0:02:30.9]} 31. g3 {[%clk 0:01:35.3]} 31... Kf6 {[%clk
0:02:29.7]} 32. Kd3 {[%clk 0:01:31.9]} 32... f4 {[%clk 0:02:08.3]} 33. gxf4
{[%clk 0:01:31.7]} 33... gxf4 {[%clk 0:02:09.2]} 34. Ng2 {[%clk 0:01:21.8]}
34... Kf5 {[%clk 0:02:03.6]} 35. Nh4+ {[%clk 0:01:15.8]} 35... Kg5 {[%clk
0:02:02.9]} 36. Ng2 {[%clk 0:01:16.4]} 36... Nd5 {[%clk 0:02:01.2]} 37. Ke4
{[%clk 0:01:15.2]} 37... h4 {[%clk 0:01:32.4]} 38. Nge1 {[%clk 0:01:14.1]} 38...
h3 {[%clk 0:01:29.5]} 39. Kd3 {[%clk 0:01:13.1]} 39... Kf5 {[%clk 0:01:25.2]}
40. Ke2 {[%clk 0:01:13.2]} 40... Nc3+ {[%clk 0:01:13.8]} 41. Kd2 {[%clk
0:01:10.7]} 41... Nb5 {[%clk 0:00:59.9]} 42. Kd3 {[%clk 0:01:10.9]} 42... e5
{[%clk 0:01:00.4]} 43. dxe5 {[%clk 0:01:03.3]} 43... Nxe5+ {[%clk 0:01:01.3]}
44. Ke2 {[%clk 0:01:03.9]} 44... Nc3+ {[%clk 0:00:53.5]} 45. Kd2 {[%clk
0:01:01.4]} 45... Nb5 {[%clk 0:00:53.4]} 46. Ke2 {[%clk 0:01:01.6]} 46... Ke6
{[%clk 0:00:50.9]} 47. Nb4 {[%clk 0:00:52]} 47... Nd4+ {[%clk 0:00:49.3]} 48.
Kf2 {[%clk 0:00:51.5]} 48... Kf5 {[%clk 0:00:48]} 49. Nd5 {[%clk 0:00:45.4]}
49... Nb3 {[%clk 0:00:31.9]} 50. Nc3 {[%clk 0:00:42.3]} 50... Nc1 {[%clk
0:00:28.3]} 51. Ne4 {[%clk 0:00:36.3]} 51... Ng4+ {[%clk 0:00:26.1]} 52. fxg4+
{[%clk 0:00:16.6]} 52... Kxe4 {[%clk 0:00:27]} 53. Nf3 {[%clk 0:00:17.3]} 53...
Nd3+ {[%clk 0:00:26.9]} 54. Ke2 {[%clk 0:00:18]} 54... Nc1+ {[%clk 0:00:27.5]}
55. Kf2 {[%clk 0:00:17.9]} 55... Nd3+ {[%clk 0:00:22.1]} 56. Ke2 {[%clk
0:00:18.3]} 56... Nc1+ {[%clk 0:00:20.1]} 57. Kf2 {[%clk 0:00:18.5]} 1/2-1/2

[Event "*** Titled Tuesday Blitz"]
[Site "Chess.com"]
[Date "2020.10.27"]
[Round "10"]
[White "kakakz"]
[Black "m-garcett"]
[Result "1-0"]
[WhiteElo "2386"]
[BlackElo "2091"]
[TimeControl "180+1"]
[EndTime "11:56:55 PDT"]
[Termination "kakakz won by resignation"]

1. d4 {[%clk 0:03:00]} 1... Nf6 {[%clk 0:02:58.5]} 2. c4 {[%clk 0:02:59.4]} 2...
g6 {[%clk 0:02:58.2]} 3. Nc3 {[%clk 0:02:58.9]} 3... Bg7 {[%clk 0:02:57.2]} 4.
e4 {[%clk 0:02:59]} 4... d6 {[%clk 0:02:57.6]} 5. Nf3 {[%clk 0:02:59]} 5... O-O
{[%clk 0:02:56.1]} 6. Be2 {[%clk 0:02:59.2]} 6... e5 {[%clk 0:02:55.6]} 7. d5
{[%clk 0:02:59.2]} 7... a5 {[%clk 0:02:54.8]} 8. Bg5 {[%clk 0:02:59.3]} 8... h6
{[%clk 0:02:53.6]} 9. Bh4 {[%clk 0:02:59.4]} 9... Na6 {[%clk 0:02:53.5]} 10. Nd2
{[%clk 0:02:59.3]} 10... Qe8 {[%clk 0:02:52.7]} 11. O-O {[%clk 0:02:55.7]} 11...
Nh7 {[%clk 0:02:45.3]} 12. a3 {[%clk 0:02:54.3]} 12... Bd7 {[%clk 0:02:39.7]}
13. b3 {[%clk 0:02:50]} 13... h5 {[%clk 0:02:38.5]} 14. f3 {[%clk 0:02:48.7]}
14... Bh6 {[%clk 0:02:28.1]} 15. Rb1 {[%clk 0:02:47.8]} 15... Be3+ {[%clk
0:02:20.1]} 16. Kh1 {[%clk 0:02:46.6]} 16... b6 {[%clk 0:01:50.8]} 17. b4 {[%clk
0:02:41.4]} 17... Bd4 {[%clk 0:01:36.8]} 18. Qc2 {[%clk 0:02:20.7]} 18... f5
{[%clk 0:01:29]} 19. Nb5 {[%clk 0:02:04.4]} 19... axb4 {[%clk 0:01:25]} 20. Nxd4
{[%clk 0:01:55.2]} 20... exd4 {[%clk 0:01:24.8]} 21. axb4 {[%clk 0:01:55.6]}
21... Ba4 {[%clk 0:01:23.7]} 22. Qd3 {[%clk 0:01:52]} 22... fxe4 {[%clk
0:01:18.3]} 23. Nxe4 {[%clk 0:01:45.6]} 23... Qe5 {[%clk 0:00:33.6]} 24. Bf2
{[%clk 0:01:24.3]} 24... Ng5 {[%clk 0:00:17.8]} 25. Bxd4 {[%clk 0:01:22.4]}
25... Qf5 {[%clk 0:00:18.1]} 26. h4 {[%clk 0:00:29.6]} 26... Nxe4 {[%clk
0:00:06.2]} 27. fxe4 {[%clk 0:00:29.5]} 27... Qd7 {[%clk 0:00:06.4]} 28. e5
{[%clk 0:00:29.1]} 28... Qh7 {[%clk 0:00:04.6]} 29. e6 {[%clk 0:00:25.4]} 29...
g5 {[%clk 0:00:04.6]} 30. Qxh7+ {[%clk 0:00:23.1]} 30... Kxh7 {[%clk 0:00:05.5]}
31. hxg5 {[%clk 0:00:22.9]} 31... Kg6 {[%clk 0:00:04.8]} 32. Bf6 {[%clk
0:00:22.1]} 32... Bc2 {[%clk 0:00:02.4]} 33. Rb2 {[%clk 0:00:18.7]} 33... Bf5
{[%clk 0:00:02.5]} 34. Bxh5+ {[%clk 0:00:10.3]} 34... Kxh5 {[%clk 0:00:01.7]}
35. Rxf5 {[%clk 0:00:11.2]} 35... Kg4 {[%clk 0:00:02.2]} 36. Rf1 {[%clk
0:00:09.4]} 36... Rh8+ {[%clk 0:00:01.8]} 37. Bxh8 {[%clk 0:00:09.2]} 37...
Rxh8+ {[%clk 0:00:02.7]} 38. Kg1 {[%clk 0:00:10.1]} 38... Kg3 {[%clk 0:00:03.1]}
39. Rf3+ {[%clk 0:00:09.9]} 39... Kg4 {[%clk 0:00:03.5]} 40. e7 {[%clk
0:00:08.9]} 40... Kxg5 {[%clk 0:00:03.5]} 41. Rf8 {[%clk 0:00:08.7]} 1-0